Cogmind - Beta 11.1 @@@ ROGUE MODE // 2022.04.30 @ 18:13:20 Player: Olga Result: Self-destructed Performance ------------- Evolutions (3) 1500 Regions Visited (5) 1000 Robots Destroyed (20) 100 Value Destroyed (224) 224 Prototype IDs (0) 0 Alien Tech Used (0) 0 Bonus (35) 35 TOTAL SCORE: 2859 Bonus ------- Follower Combat Kills 35 Cogmind --------- Core Integrity 700/700 Matter 107/300 Energy 140/160 System Corruption 0% Temperature Cool (20) Movement Flying (24) Location -7/Factory Parts ------- > --- POWER (1) -------- Light Nuclear Core > --- PROPULSION (5) --- Flight Unit Surge Thruster Surge Thruster Surge Thruster Surge Thruster > --- UTILITY (5) ------ Small Storage Unit Advanced Visual Processing Unit Improved Terrain Scanner Improved Utility Shielding > --- WEAPON (2) ------- Axe > --- INVENTORY (8) ---- Nuclear Core Flight Unit Autogun Autogun Grenade Launcher Peak State ------------ > --- POWER ------------ Light Nuclear Core > --- PROPULSION ------- Flight Unit Surge Thruster Surge Thruster Surge Thruster Surge Thruster > --- UTILITY ---------- Small Storage Unit Advanced Visual Processing Unit Improved Terrain Scanner Improved Utility Shielding > --- WEAPON ----------- Axe > --- INVENTORY -------- Nuclear Core Flight Unit Autogun Autogun Grenade Launcher [Rating: 29] Favorites ----------- Power Light Ion Engine Engine Light Ion Engine Power Core Light Nuclear Core Propulsion Flight Unit Flight Unit Flight Unit Utility Propulsion Shielding Device Improved Terrain Scanner Storage Small Storage Unit Processor Advanced Visual Processing Unit Protection Propulsion Shielding Weapon Light Assault Rifle Energy Gun Small Laser Ballistic Gun Light Assault Rifle Launcher Grenade Launcher Slashing Weapon Axe Build | -11 -10 -10 -9 -8 -7 ------- Run | Scr Mat Min Mat Mat Fac Slots Evolved 6 | . . . 2 2 2 Power . | . . . . . . Propulsion 3 | . . . . 2 1 Utility 3 | . . . 2 . 1 Weapon . | . . . . . . Parts Attached 34 | 2 . 4 6 19 3 Power 2 | . . . . 2 . Engine 1 | . . . . 1 . Core 1 | . . . . 1 . Reactor . | . . . . . . Propulsion 16 | . . 1 4 10 1 Treads . | . . . . . . Leg . | . . . . . . Wheel . | . . . . . . Hover . | . . . . . . Flight 16 | . . 1 4 10 1 Utility 6 | . . 1 2 2 1 Device 1 | . . . . 1 . Storage 1 | . . . 1 . . Processor 1 | . . . . 1 . Hackware . | . . . . . . Protection 3 | . . 1 1 . 1 Artifact . | . . . . . . Weapon 10 | 2 . 2 . 5 1 Energy Gun 1 | 1 . . . . . Energy Cannon . | . . . . . . Ballistic Gun 4 | 1 . 2 . 1 . Ballistic Cannon . | . . . . . . Launcher 2 | . . . . 2 . Special Weapon . | . . . . . . Impact Weapon . | . . . . . . Slashing Weapon 3 | . . . . 2 1 Piercing Weapon . | . . . . . . Special Melee Weapon . | . . . . . . Unidentified Prototypes . | . . . . . . Parts Lost 5 | . . . 3 2 . Power . | . . . . . . Propulsion 3 | . . . 2 1 . Utility 1 | . . . . 1 . Weapon 1 | . . . 1 . . Highest Loss Streak 2 | . . . 2 2 . To Critical Strikes . | . . . . . . Average Slot Usage (%) 56 | . 28 43 47 88 . Engine 1 | . . . . 5 . Flight 16 | . . 6 16 36 . Storage 3 | . . . 5 9 . Processor 2 | . . . . 7 . Protection 9 | . . 8 12 11 . Energy Gun 4 | . 14 8 . . . Ballistic Gun 13 | . 14 19 14 6 . Slashing Weapon 1 | . . . . 3 . Naked Turns . | . . . . . . Heaviest Build 17 | 2 2 3 8 17 16 Greatest Support 16 | 3 3 4 8 16 16 Greatest Overweight (x) 1 | . . . . 1 . Average Overweight (x) . | . . . . . . Largest Inventory Capacity 8 | 5 5 5 8 8 8 Average Capacity 6 | 5 5 5 6 8 8 Most Carried 8 | 5 5 5 8 8 7 Average Carried 5 | 4 4 5 6 6 5 Final Capacity 8 | 5 5 5 8 8 8 Final Carried 8 | 4 5 5 7 8 5 Class Distribution -------------------- 73% | Mutant 26% | Scavenger-Sprinter Dominant Class ---------------- Mutant | -10/Materials Mutant | -10/Mines Mutant | -9/Materials Scavenger-Sprinter | -8/Materials Scavenger-Sprinter | -7/Factory Resources | -11 -10 -10 -9 -8 -7 ----------- Run | Scr Mat Min Mat Mat Fac Matter Collected 390 | 200 20 54 57 59 . Remotely . | . . . . . . Salvage Created 307 | . 44 15 109 139 . Parts 42 | . 4 1 18 19 . Haulers Intercepted . | . . . . . . Recyclers Shooed . | . . . . . . Parts Field Recycled . | . . . . . . Retrieved Matter . | . . . . . . Parts Self-Destructed . | . . . . . . Prevented . | . . . . . . Kills | -11 -10 -10 -9 -8 -7 ------- Run | Scr Mat Min Mat Mat Fac Combat Hostiles Destroyed 17 | . 2 1 7 7 . Guns 10 | . 2 1 7 . . AOE 7 | . . . . 7 . Classes Destroyed 4 | . 2 . . 2 . Builder 2 | . 1 . . 1 . Recycler 1 | . . . . 1 . Swarmer 13 | . 2 1 7 3 . Cutter 4 | . . . . 4 . Best Kill Streak 9 | . 3 1 7 9 . Combat Bots Only 7 | . 2 1 7 7 . Max Kills in Single Turn 6 | . 1 1 1 6 . Gunslinging . | . . . . . . Exploded 4 | . . . . 4 . Melee . | . . . . . . Uniques/NPCs Destroyed . | . . . . . . Combat | -11 -10 -10 -9 -8 -7 -------- Run | Scr Mat Min Mat Mat Fac Damage Taken 890 | . 24 219 363 284 . Core 343 | . 9 119 165 50 . Absorbed by Shields . | . . . . . . Redirected to Shielding 47 | . . . 21 26 . Core Remaining (%) 74 | 100 . 48 58 90 . Volleys Fired 38 | . 5 9 21 3 . Largest 2 | . 2 2 2 1 . Hottest 60 | . 60 60 40 30 . Shots Fired 58 | . 10 18 27 3 . Gun 55 | . 10 18 27 . . Cannon . | . . . . . . Launcher 3 | . . . . 3 . Special . | . . . . . . Kinetic 41 | . 5 9 27 . . Thermal 14 | . 5 9 . . . Explosive 3 | . . . . 3 . Electromagnetic . | . . . . . . Robot Hit Streak 6 | . 5 5 6 3 . Robot Miss Streak 5 | . 2 2 5 . . Penetration Max . | . . . . . . Secondary Targets 1 | . . . 1 . . Max Gunslinging Chain 1 | . . . 1 . . Shots Hit Robots 36 | . 7 11 16 2 . Core Hits 29 | . 4 4 8 13 . Critical Kills . | . . . . . . Critical Parts Destroyed 1 | . . . 1 . . Critical Strikes 1 | . . . 1 . . Destroy 1 | . . . 1 . . Melee Attacks . | . . . . . . Impact . | . . . . . . Slashing . | . . . . . . Piercing . | . . . . . . Sneak Attacks . | . . . . . . Combat Hostiles . | . . . . . . Follow-up Attacks . | . . . . . . Damage Inflicted 722 | . 73 111 127 411 . Guns 308 | . 73 111 124 . . Cannons . | . . . . . . Explosions 411 | . . . . 411 . Melee . | . . . . . . Ramming 3 | . . . 3 . . Kinetic 192 | . 31 37 124 . . Thermal 116 | . 42 74 . . . Explosive 411 | . . . . 411 . Electromagnetic . | . . . . . . Impact . | . . . . . . Slashing . | . . . . . . Piercing . | . . . . . . Highest Corruption . | . . . . . . Average Corruption . | . . . . . . Corruption Purged . | . . . . . . Corruption Blocked . | . . . . . . Overload Shots . | . . . . . . Overflow Damage 18 | . . . . 18 . Projectiles . | . . . . . . Explosions 18 | . . . . 18 . Melee . | . . . . . . Knockbacks . | . . . . . . Impact . | . . . . . . Kinetic . | . . . . . . Secondary . | . . . . . . Self-Inflicted Damage 1 | . . . 1 . . Shots . | . . . . . . Rammed 1 | . . . 1 . . Targets Rammed 1 | . . . 1 . . Kicked . | . . . . . . Crushed . | . . . . . . Highest Temperature 20 | . 20 20 1 16 . Average Temperature 8 | . 9 8 1 8 . Received Heat Transfer 192 | . . 36 75 81 . Siege Activations . | . . . . . . Robots Corrupted . | . . . . . . Combat Hostiles . | . . . . . . Parts Fried . | . . . . . . Impact Corruptions . | . . . . . . Robots Melted . | . . . . . . Combat Hostiles . | . . . . . . Parts Melted . | . . . . . . Heat Transferred 275 | . 100 175 . . . Parts Sabotaged . | . . . . . . Parts Stolen . | . . . . . . Parts Stripped . | . . . . . . Power Chain Reactions . | . . . . . . Missiles Intercepted . | . . . . . . Alert | -11 -10 -10 -9 -8 -7 ------- Run | Scr Mat Min Mat Mat Fac Peak Influence 475 | . 70 171 305 475 215 Initial 215 | . . 27 66 124 215 Average 155 | . 17 99 192 241 215 Maximum Alert Level 2 | . . . 1 2 1 Low Security (%) 72 | 100 100 100 42 57 . Level 1 18 | . . . 57 12 100 Level 2 8 | . . . . 30 . Level 3 . | . . . . . . Level 4 . | . . . . . . Level 5 . | . . . . . . High Security . | . . . . . . Max Security . | . . . . . . Squads Dispatched 3 | . . . 2 1 . Investigation . | . . . . . . Extermination . | . . . . . . Reinforcement 3 | . . . 2 1 . Assault . | . . . . . . Garrison . | . . . . . . Intercept . | . . . . . . Searches Triggered . | . . . . . . Construction Impeded . | . . . . . . Haulers Reinforced . | . . . . . . Active Scanning Responses . | . . . . . . Cargo Convoy Interrupts . | . . . . . . Stealth | -11 -10 -10 -9 -8 -7 --------- Run | Scr Mat Min Mat Mat Fac Distress Signals 3 | . 2 . . 1 . Communications Jammed . | . . . . . . Distress Signals . | . . . . . . Times Spotted 55 | . 4 9 22 20 . Peak Tracking Total 15 | . 3 4 13 15 . Tactical Retreats 7 | . 1 2 1 3 . Traps | -11 -10 -10 -9 -8 -7 ------- Run | Scr Mat Min Mat Mat Fac Traps Triggered . | . . . . . . Indirectly . | . . . . . . Trap Hack Attempts . | . . . . . . Triggered . | . . . . . . Disarmed . | . . . . . . Reprogrammed . | . . . . . . Reused . | . . . . . . Traps Extracted . | . . . . . . Installed . | . . . . . . Triggered . | . . . . . . Machines | -11 -10 -10 -9 -8 -7 ---------- Run | Scr Mat Min Mat Mat Fac Machines Disabled 1 | . . . . 1 . Max in Single Turn 1 | . . . . 1 . Machines Sabotaged . | . . . . . . Garrisons Compromised . | . . . . . . Overloaded Fab Kills . | . . . . . . Hacking | -11 -10 -10 -9 -8 -7 --------- Run | Scr Mat Min Mat Mat Fac Machines Accessed 4 | . . . 1 2 1 Terminals 4 | . . . 1 2 1 Fabricators . | . . . . . . Repair Stations . | . . . . . . Recycling Units . | . . . . . . Scanalyzers . | . . . . . . Garrison Access . | . . . . . . Total Hacks 8 | . . . 2 4 2 Successful 1 | . . . 1 . . Failed 7 | . . . 1 4 2 Catastrophic 4 | . . . . 3 1 Database Lockouts . | . . . . . . Manual 8 | . . . 2 4 2 Terminals 8 | . . . 2 4 2 Fabricators . | . . . . . . Repair Stations . | . . . . . . Recycling Units . | . . . . . . Scanalyzers . | . . . . . . Garrison Access . | . . . . . . Terminal Hacks 1 | . . . 1 . . Level Access Points 1 | . . . 1 . . Fabricator Hacks . | . . . . . . Repair Station Hacks . | . . . . . . Recycling Unit Hacks . | . . . . . . Scanalyzer . | . . . . . . Garrison Access Hacks . | . . . . . . Unauthorized Hacks . | . . . . . . Terminals . | . . . . . . Fabricators . | . . . . . . Repair Stations . | . . . . . . Recycling Units . | . . . . . . Scanalyzers . | . . . . . . Garrison Access . | . . . . . . Data Cores Recovered . | . . . . . . Used . | . . . . . . Hacking Detections 4 | . . . 1 2 1 Full Trace Events . | . . . . . . Feedback Events . | . . . . . . Feedback Blocked . | . . . . . . Robot Schematics Acquired . | . . . . . . Robots Built . | . . . . . . Authchips . | . . . . . . Time . | . . . . . . Total Robot Build Rating . | . . . . . . Part Schematics Acquired . | . . . . . . Parts Built . | . . . . . . Authchips . | . . . . . . Time . | . . . . . . Total Part Build Rating . | . . . . . . Parts Repaired . | . . . . . . Time . | . . . . . . Parts Recycled . | . . . . . . Recycled Matter . | . . . . . . Retrieved Matter . | . . . . . . Retrieved Components . | . . . . . . Parts Scanalyzed . | . . . . . . Part Schematics Acquired . | . . . . . . Parts Damaged . | . . . . . . Bothacking | -11 -10 -10 -9 -8 -7 ------------ Run | Scr Mat Min Mat Mat Fac Used RIF Installer . | . . . . . . Robots Hacked . | . . . . . . Non-combat . | . . . . . . Combat . | . . . . . . Robot Hacks Applied . | . . . . . . Relay Couplers Released . | . . . . . . Fabnet Peak Effective % . | . . . . . . Robots Rewired . | . . . . . . Allies Hacked . | . . . . . . Hacks Repelled . | . . . . . . Allies | -11 -10 -10 -9 -8 -7 -------- Run | Scr Mat Min Mat Mat Fac Total Allies 1 | . . 1 . . . Largest Group 1 | . . 1 . . . Highest-Rated Group 31 | . . 31 . . . Highest-Rated Ally 31 | . . 31 . . . Total Orders . | . . . . . . Ally Attacks 9 | . . 9 . . . Total Damage 167 | . . 167 . . . Kills 2 | . . 2 . . . Allies Corrupted . | . . . . . . Allies Melted . | . . . . . . Intel | -11 -10 -10 -9 -8 -7 ------- Run | Scr Mat Min Mat Mat Fac Robot Analysis Total . | . . . . . . Derelict Logs Recovered . | . . . . . . Drone Launches . | . . . . . . Drone Recoveries . | . . . . . . Exploration | -11 -10 -10 -9 -8 -7 ------------- Run | Scr Mat Min Mat Mat Fac Turns Passed 478 | 6 40 178 109 136 9 Spaces Moved 853 | 3 45 327 134 319 25 Core 200 | 3 45 150 2 . . Treads . | . . . . . . Legs . | . . . . . . Wheels . | . . . . . . Hover . | . . . . . . Flight 653 | . . 177 132 319 25 Fastest Speed 14 | 50 50 40 34 14 24 Average Speed 37 | 50 50 44 36 29 24 Slowest Speed 99 | 50 50 50 50 99 24 Overloaded Moves 3 | . . . . 3 . Propulsion Burnouts . | . . . . . . Robots Hopped 1 | . . . . 1 . Cave-ins Triggered . | . . . . . . Exploration Rate (%) 28 | 2 14 86 22 44 2 Regions Visited 5 Branch Regions 1 Pre-discovered Areas . | . . . . . . Known Exits Taken 1 | . . . 1 . . Unknown Exits Taken 4 | 1 1 1 . 1 . Scrap Searched 1 | . . 1 . . . Spaces Dug . | . . . . . . Terrain Destroyed 18 | . . . . 18 . Melee . | . . . . . . Projectile . | . . . . . . AOE 18 | . . . . 18 . Terrain Rammed . | . . . . . . Walls Destroyed . | . . . . . . Machines Disabled . | . . . . . . Actions | -11 -10 -10 -9 -8 -7 --------- Run | Scr Mat Min Mat Mat Fac Total 955 | 6 52 341 173 355 28 Wait 4 | . 2 . 2 . . Move 847 | 2 44 326 134 316 25 Hop 1 | . . . . 1 . Pick Up 14 | 1 1 . 7 5 . Fast Attach 13 | 1 . 3 3 6 . Attach 12 | 1 . . 2 6 3 Detach 1 | . . . . 1 . Swap 9 | . . 1 1 7 . Drop 16 | 1 . 2 3 10 . Fire 38 | . 5 9 21 3 . Melee . | . . . . . . Ram . | . . . . . . Kick . | . . . . . . Crush . | . . . . . . Escape Stasis . | . . . . . . Rewire . | . . . . . . Trap . | . . . . . . Miscellaneous . | . . . . . . Route ------- -11/Scrapyard -10/Materials -10/Mines -9/Materials (discovered 3 exits: *Mat x3) -8/Materials -7/Factory History --------- Turn | Location | Event 1 | -11/Scrapyard | Released all parts (6) 3 | -11/Scrapyard | Discovered new exit (range 3) 7 | -11/Scrapyard | Entered Materials 45 | -10/Materials | Discovered new exit (range 4) 47 | -10/Materials | Entered Mines 50 | -10/Mines | Met a Derelict bent on vengeance 74 | -10/Mines | Received a Mining Laser from a helpful Derelict 191 | -10/Mines | Core integrity fell below 50% 222 | -10/Mines | Discovered new exit (range 7) 225 | -10/Mines | Entered Materials 225 | -9/Materials | Evolved 2 slots: Utility x2 307 | -9/Materials | Identified exit to Materials 308 | -9/Materials | Destroyed 7 combat bots 334 | -9/Materials | Entered another Materials area 334 | -8/Materials | Evolved 2 slots: Propulsion x2 438 | -8/Materials | Destroyed 7 combat bots 469 | -8/Materials | Discovered new exit (range 3) 470 | -8/Materials | Entered Factory 470 | -7/Factory | Evolved 2 slots: Propulsion x1, Utility x1 479 | -7/Factory | Self-destructed Last Messages --------------- 00437_ Acquired Surge Thruster. 00438_ U-05 Engineer lays Concrete. 00439_ Dropped Autogun. 00439_ U-05 Engineer builds a Wall. 00440_ Acquired Blade Saw. 00440_ U-05 Engineer lays Concrete. 00440_ R-06 Scavenger collects Lgt. Assault Rifle. 00441_ R-06 Scavenger collects Lgt. Nuclear Core. 00442_ The unstable cave ceiling collapses. 00445_ Connecting with Terminal... 00452_ Acquired Imp. Terrain Scanner. 00453_ Dropped Blade Saw. 00457_ Connecting with Terminal... 00465_ K-01 Serf collects debris. 00469_ EXIT=FOUND PARAMETERS=PROPULSION+1,UTILITY+1 LOCATION=UNKNOWN GOAL=ESCAPE 00479_ Connecting with Terminal... 00479_ Current location identified: Factory Map ----- +----------------------------------------------------+ | ???????????"" """??????????????????? ??????????? | | ???????????"" """????????????????? ??????????? | | ??????????""" """"?############### #?????????? | | ?????????? ?# ?????????? | | ???????????"" """" # ?????????? | | ???????????"" """" # ????????? | | ???????????"" """" + ????????? | | ???????????"" """" # ???????? | | ????????? # ???????? | | ??????????########## ???????? | | ?????????????????# ???????? | | ?????????????????# ???????? | | ?????????????????# ???????? | | ?????????????????# ???????? | | ?????????????????# ???????? | | ????????????????######+##################????????? | | ????????????????# #???????????????????? | | ????????????????+ """" """" #???????????????????? | | ????????????????# """" """" #???????????????????? | | ????????????????# """" """" #???????????????????? | | ????????????????# """" """" #???????????????????? | | ????????????????# #???????????????????? | | ????????????????# #???????????????????? | | ????????????????# #???????????????????? | | ????????????????# #???????????????????? | | ????????????????# @ #???????????????????? | | ????????????????# ""T"" #???????????????????? | | ????????????????# """"" #???????????????????? | | ????????????????##############???????????????????? | | ?????????????????????????????????????????????????? | | ?????????????????????????????????????????????????? | | ?????????????????????????????????????????????????? | | ?????????????????????????????????????????????????? | | ?????????????????????????????????????????????????? | | ?????????????????????????????????????????????????? | | ?????????????????????????????????????????????????? | | ?????????????????????????????????????????????????? | | ?????????????????????????????????????????????????? | | ?????????????????????????????????????????????????? | | ?????????????????????????????????????????????????? | | ?????????????????????????????????????????????????? | | ?????????????????????????????????????????????????? | | ?????????????????????????????????????????????????? | | ?????????????????????????????????????????????????? | | ?????????????????????????????????????????????????? | | ?????????????????????????????????????????????????? | | ?????????????????????????????????????????????????? | | ?????????????????????????????????????????????????? | | ?????????????????????????????????????????????????? | | ?????????????????????????????????????????????????? | +----------------------------------------------------+ Best States ------------- Heat Dissipation 31 Energy Generation 14 Energy Capacity 160 Matter Stores 300 Matter Capacity 300 Sight Range 20 Terrain Scan Range 16 Terrain Scan Density 10 Power Shielding 33 Propulsion Shielding 33 Evasion (%) 64 Item Schematics ----------------- None Robot Schematics ------------------ None Fabricated ------------ Nothing Alien Tech Used ----------------- None Achievements -------------- None Challenges ------------ None Game ------ Seed ImprovedNuclearBlaster Manual? 0 Play Time 00:13:04 Cumulative 129.2 hours Start 2022.04.30 @ 18:00:47 End 2022.04.30 @ 18:13:20 Sessions 1 Manual Loads 0 Difficulty Rogue Special Mode None Game No. 167 Rogue 166 Adventurer 0 Explorer 1 Win Type - Total 4 Types 4/0/0/0/0/0/0/0/0 Lore% 59 Gallery% 59 Achievement% 49 Wizard Run 0 Options --------- ASCII 1 Keyboard 0 Movement Vi Keybinds 0 Fullscreen 1 Font 18/SmallcapsGlow Map View 76x50 Tactical HUD 1 Map Filters NONE Filters NONE Steam 1 RUN: cf70af7f-54a9-4c4f-b55a-fbd8880a84a0